fUST/lending_fUST_20250602
["ID","MTS","AMOUNT","RATE_DAILY","PERIOD"]
[363800811,1748875851616,-430.0,0.00018743,2]
[363800812,1748875851626,-878.66,0.00018743,2]
[363800813,1748875851635,-430.0,0.00018743,2]
[363800814,1748875851645,-430.0,0.00018743,2]
[363800815,1748875851655,-430.0,0.00018743,2]
[363800816,1748875851665,-430.0,0.00018743,2]
[363800817,1748875851675,-430.0,0.00018743,2]
[363800818,1748875851685,-430.0,0.00018743,2]
[363800819,1748875851695,-2068.77,0.00018743,2]
[363800820,1748875851705,-873.36,0.00018743,2]
[363800821,1748875851715,-430.0,0.00018743,2]
[363800822,1748875851724,-430.0,0.00018743,2]
[363800823,1748875851734,-476.02,0.00018743,2]
[363800824,1748875851746,-430.0,0.00018743,2]
[363800825,1748875851755,-430.0,0.00018743,2]
[363800826,1748875851765,-430.0,0.00018743,2]
[363800827,1748875851775,-430.0,0.00018743,2]
[363800828,1748875851786,-565.92,0.00018743,2]
[363800829,1748875851796,-733.15,0.00018743,2]
[363800830,1748875851806,-430.0,0.00018743,2]
[363800831,1748875851816,-1526.4,0.00018743,2]
[363800832,1748875851825,-430.0,0.00018743,2]
[363800833,1748875851835,-654.67,0.00018743,2]
[363800834,1748875851844,-430.0,0.00018743,2]
[363800835,1748875851854,-3041.88,0.00018743,2]
[363800836,1748875851864,-430.0,0.00018743,2]
[363800837,1748875851874,-501.42,0.00018743,2]
[363800838,1748875851884,-430.0,0.00018744,2]
[363800839,1748875851894,-434.65,0.00018744,2]
[363800840,1748875851904,-430.0,0.00018744,2]
[363800841,1748875851916,-430.0,0.00018744,2]
[363800842,1748875851926,-430.0,0.00018744,2]
[363800843,1748875851935,-430.0,0.00018744,2]
[363800844,1748875851944,-430.0,0.00018744,2]
[363800845,1748875851953,-430.0,0.00018744,2]
[363800846,1748875851963,-430.0,0.00018744,2]
[363800847,1748875851973,-511.53,0.00018744,2]
[363800848,1748875851983,-1091.3,0.00018744,2]
[363800849,1748875851995,-1175.57,0.00018744,2]
[363800850,1748875852005,-1163.93,0.00018744,2]
[363800851,1748875852014,-5000.0,0.00018874,2]
[363800852,1748875852025,-5000.0,0.000189,3]
[363800853,1748875852038,-1158.30283495,0.00018934,2]
[363800854,1748875852047,-3724.32592862,0.00019,2]
[363800855,1748875852056,-500.0,0.00019,2]
[363800856,1748875852067,-430.0,0.00019015,2]
[363800857,1748875852077,-430.0,0.00019015,2]
[363800858,1748875852087,-804.94,0.00019015,2]
[363800859,1748875852097,-1248.91,0.00019015,2]
[363800860,1748875852107,-430.0,0.00019015,2]
[363800861,1748875852117,-1900.15,0.00019015,2]
[363800862,1748875852127,-2597.69,0.00019015,2]
[363800863,1748875852136,-430.0,0.00019015,2]
[363800864,1748875852146,-638.72,0.00019016,2]
[363800865,1748875852156,-2908.69,0.00019016,2]
[363800866,1748875852166,-430.0,0.00019016,2]
[363800867,1748875852175,-430.0,0.00019016,2]
[363800868,1748875852185,-430.0,0.00019016,2]
[363800869,1748875852195,-430.0,0.00019016,2]
[363800870,1748875852205,-497.83,0.00019016,2]
[363800871,1748875852215,-1048.09,0.00019016,2]
[363800872,1748875852225,-430.0,0.00019016,2]
[363800873,1748875852235,-673.12,0.00019016,2]
[363800874,1748875852249,-430.0,0.00019016,2]
[363800875,1748875852259,-430.0,0.00019016,2]
[363800876,1748875852270,-430.0,0.00019016,2]
[363800877,1748875852280,-430.0,0.00019016,2]
[363800878,1748875852290,-564.67,0.00019016,2]
[363800879,1748875852300,-851.01,0.00019016,2]
[363800880,1748875852309,-430.0,0.00019016,2]
[363800881,1748875852319,-430.0,0.00019017,2]
[363800882,1748875852328,-430.0,0.00019017,2]
[363800883,1748875852338,-469.58,0.00019017,2]
[363800884,1748875852348,-458.12,0.00019017,2]
[363800885,1748875852359,-430.0,0.00019017,2]
[363800886,1748875852369,-430.0,0.00019017,2]
[363800887,1748875852380,-430.0,0.00019017,2]
[363800888,1748875852390,-430.0,0.00019017,2]
[363800889,1748875852405,-878.66,0.00019017,2]
[363800890,1748875852414,-430.0,0.00019017,2]
[363800891,1748875852423,-430.0,0.00019017,2]
[363800892,1748875852433,-312.07185193,0.00019017,2]
[363800893,1748875852443,-430.0,0.00019017,2]
[363800894,1748875852452,-430.0,0.00019017,2]
[363800895,1748875852463,-430.0,0.00019017,2]
[363800896,1748875852472,-2068.77,0.00019017,2]
[363800897,1748875852482,-873.36,0.00019017,2]
[363800898,1748875852495,-430.0,0.00019017,2]
[363800899,1748875852504,-430.0,0.00019017,2]
[363800900,1748875852514,-476.02,0.00019017,2]
[363800901,1748875852523,-430.0,0.00019017,2]
[363800902,1748875852533,-430.0,0.00019017,2]
[363800903,1748875852543,-430.0,0.00019017,2]
[363800904,1748875852553,-430.0,0.00019017,2]
[363800905,1748875852563,-565.92,0.00019017,2]
[363800906,1748875852573,-733.15,0.00019017,2]
[363800907,1748875852583,-430.0,0.00019017,2]
[363800908,1748875852592,-1526.4,0.00019017,2]
[363800909,1748875852602,-430.0,0.00019017,2]
[363800910,1748875852612,-654.67,0.00019017,2]
[363800911,1748875852622,-3041.88,0.00019017,2]
[363800912,1748875852631,-430.0,0.00019017,2]
[363800913,1748875852641,-501.42,0.00019017,2]
[363800914,1748875852651,-430.0,0.00019018,2]
[363800915,1748875852661,-434.65,0.00019018,2]
[363800916,1748875852671,-430.0,0.00019018,2]
[363800917,1748875852680,-430.0,0.00019018,2]
[363800918,1748875852689,-430.0,0.00019018,2]
[363800919,1748875852699,-430.0,0.00019018,2]
[363800920,1748875852708,-430.0,0.00019018,2]
[363800921,1748875852718,-1091.3,0.00019018,2]
[363800922,1748875852729,-1175.57,0.00019018,2]
[363800923,1748875852740,-1163.93,0.00019018,2]
[363800924,1748875852750,-1000.0,0.00019033,2]
[363800925,1748875852759,-416.68985103,0.00019124,2]
[363800926,1748875852770,-1158.30283495,0.00019141,2]
[363800927,1748875852780,-500.0,0.00019178,2]
[363800928,1748875852790,-500.0,0.00019178,2]
[363800929,1748875852800,-603.7342387,0.00019178,2]
[363800930,1748875852809,-500.0,0.00019178,2]
[363800931,1748875852819,-500.0,0.00019178,2]
[363800932,1748875852829,-500.0,0.00019178,2]
[363800933,1748875852839,-500.0,0.00019178,2]
[363800934,1748875852848,-500.0,0.00019178,2]
[363800935,1748875852858,-500.0,0.00019178,2]
[363800936,1748875852868,-500.0,0.00019178,2]
[363800937,1748875852878,-400.0,0.00019178,2]
[363800938,1748875852888,-270.0,0.00019178,2]
[363800939,1748875852898,-244.644001,0.00019178,2]
[363800940,1748875852908,-517.16,0.00019289,2]
[363800941,1748875852918,-512.28,0.00019289,2]
[363800942,1748875852928,-804.94,0.00019289,2]
[363800943,1748875852938,-1248.91,0.00019289,2]
[363800944,1748875852948,-430.0,0.00019289,2]
[363800945,1748875852957,-1900.15,0.00019289,2]
[363800946,1748875852967,-2597.69,0.00019289,2]
[363800947,1748875852976,-433.19390717,0.00019289,2]
[363800948,1748875852986,-638.72,0.0001929,2]
[363800949,1748875852997,-2908.69,0.0001929,2]
[363800950,1748875853007,-369.59614501,0.0001929,2]
[363800951,1748875853016,-430.0,0.0001929,2]
[363800952,1748875853026,-430.0,0.0001929,2]
[363800953,1748875853036,-430.0,0.0001929,2]
[363800954,1748875853046,-497.83,0.0001929,2]
[363800955,1748875853056,-1048.09,0.0001929,2]
[363800956,1748875853066,-430.0,0.0001929,2]
[363800957,1748875853076,-673.12,0.0001929,2]
[363800958,1748875853085,-430.0,0.0001929,2]
[363800959,1748875853094,-430.0,0.0001929,2]
[363800960,1748875853104,-430.0,0.0001929,2]
[363800961,1748875853113,-564.67,0.0001929,2]
[363800962,1748875853123,-851.01,0.0001929,2]
[363800963,1748875853133,-430.0,0.0001929,2]
[363800964,1748875853142,-430.0,0.00019291,2]
[363800965,1748875853152,-430.0,0.00019291,2]
[363800966,1748875853162,-469.58,0.00019291,2]
[363800967,1748875853171,-458.12,0.00019291,2]
[363800968,1748875853181,-430.0,0.00019291,2]
[363800969,1748875853190,-430.0,0.00019291,2]
[363800970,1748875853200,-430.0,0.00019291,2]
[363800971,1748875853210,-191.23865273,0.00019291,2]
[363800972,1748875853219,-878.66,0.00019291,2]
[363800973,1748875853229,-430.0,0.00019291,2]
[363800974,1748875853241,-424.48293153,0.00019291,2]
[363800975,1748875853251,-430.0,0.00019291,2]
[363800976,1748875853261,-363.25,0.00019291,2]
[363800977,1748875853271,-430.0,0.00019291,2]
[363800978,1748875853281,-2068.77,0.00019291,2]
[363800979,1748875853291,-873.36,0.00019291,2]
[363800980,1748875853302,-430.0,0.00019291,2]
[363800981,1748875853312,-430.0,0.00019291,2]
[363800982,1748875853322,-476.02,0.00019291,2]
[363800983,1748875853332,-367.63231252,0.00019291,2]
[363800984,1748875853342,-430.0,0.00019291,2]
[363800985,1748875853352,-430.0,0.00019291,2]
[363800986,1748875853363,-430.0,0.00019291,2]
[363800987,1748875853373,-565.92,0.00019291,2]
[363800988,1748875853383,-733.15,0.00019291,2]
[363800989,1748875853393,-430.0,0.00019291,2]
[363800990,1748875853405,-1526.4,0.00019291,2]
[363800991,1748875853415,-430.0,0.00019291,2]
[363800992,1748875853425,-654.67,0.00019291,2]
[363800993,1748875853434,-3041.88,0.00019291,2]
[363800994,1748875853443,-430.0,0.00019291,2]
[363800995,1748875853454,-501.42,0.00019291,2]
[363800996,1748875853464,-430.0,0.00019292,2]
[363800997,1748875853473,-434.65,0.00019292,2]
[363800998,1748875853483,-430.0,0.00019292,2]
[363800999,1748875853496,-430.0,0.00019292,2]
[363801000,1748875853506,-430.0,0.00019292,2]
[363801001,1748875853515,-430.0,0.00019292,2]
[363801002,1748875853525,-1091.3,0.00019292,2]
[363801003,1748875853535,-1175.57,0.00019292,2]
[363801004,1748875853544,-1163.93,0.00019292,2]
[363801005,1748875853554,-160.0,0.00019294,2]
[363801006,1748875853564,-1158.30283495,0.00019348,2]
[363801007,1748875853574,-500.0,0.00019493,2]
[363801008,1748875853583,-600.0,0.00019493,2]
[363801009,1748875853593,-502.60008131,0.00019493,2]
[363801010,1748875853603,-84663.55395,0.00019554,2]
[363801011,1748875853612,-1158.30283495,0.00019555,2]
[363801012,1748875853622,-804.94,0.00019563,2]
[363801013,1748875853631,-1248.91,0.00019563,2]
[363801014,1748875853641,-262.12753898,0.00019563,2]
[363801015,1748875853651,-1900.15,0.00019563,2]
[363801016,1748875853661,-2597.69,0.00019563,2]
[363801017,1748875853671,-638.72,0.00019564,2]
[363801018,1748875853681,-2908.69,0.00019564,2]
[363801019,1748875853691,-430.0,0.00019564,2]
[363801020,1748875853824,-430.0,0.00019564,2]
[363801021,1748875853835,-430.0,0.00019564,2]
[363801022,1748875853845,-497.83,0.00019564,2]
[363801023,1748875853855,-1048.09,0.00019564,2]
[363801024,1748875853865,-430.0,0.00019564,2]
[363801025,1748875853875,-673.12,0.00019564,2]
[363801026,1748875853885,-430.0,0.00019564,2]
[363801027,1748875853894,-430.0,0.00019564,2]
[363801028,1748875853905,-430.0,0.00019564,2]
[363801029,1748875853915,-564.67,0.00019564,2]
[363801030,1748875853924,-851.01,0.00019564,2]
[363801031,1748875853934,-430.0,0.00019564,2]
[363801032,1748875853944,-8871.92262778,0.00019565,3]
[363801033,1748875853954,-374.318764,0.00019565,2]
[363801034,1748875853964,-430.0,0.00019565,2]
[363801035,1748875853974,-469.58,0.00019565,2]
[363801036,1748875853984,-458.12,0.00019565,2]
[363801037,1748875853999,-303.35214421,0.00019565,2]
[363801038,1748875854009,-430.0,0.00019565,2]
[363801039,1748875854020,-430.0,0.00019565,2]
[363801040,1748875854030,-878.66,0.00019565,2]
[363801041,1748875854040,-430.0,0.00019565,2]
[363801042,1748875854051,-430.0,0.00019565,2]
[363801043,1748875854061,-430.0,0.00019565,2]
[363801044,1748875854071,-2068.77,0.00019565,2]
[363801045,1748875854081,-873.36,0.00019565,2]
[363801046,1748875854091,-430.0,0.00019565,2]
[363801047,1748875854102,-430.0,0.00019565,2]
[363801048,1748875854111,-476.02,0.00019565,2]
[363801049,1748875854121,-430.0,0.00019565,2]
[363801050,1748875854131,-430.0,0.00019565,2]
[363801051,1748875854141,-430.0,0.00019565,2]
[363801052,1748875854151,-565.92,0.00019565,2]
[363801053,1748875854161,-733.15,0.00019565,2]
[363801054,1748875854171,-430.0,0.00019565,2]
[363801055,1748875854182,-1526.4,0.00019565,2]
[363801056,1748875854192,-430.0,0.00019565,2]
[363801057,1748875854203,-654.67,0.00019565,2]
[363801058,1748875854212,-3041.88,0.00019565,2]
[363801059,1748875854222,-430.0,0.00019565,2]
[363801060,1748875854233,-501.42,0.00019565,2]
[363801061,1748875854244,-430.0,0.00019566,2]
[363801062,1748875854254,-434.65,0.00019566,2]
[363801063,1748875854264,-430.0,0.00019566,2]
[363801064,1748875854274,-430.0,0.00019566,2]
[363801065,1748875854284,-430.0,0.00019566,2]
[363801066,1748875854295,-430.0,0.00019566,2]
[363801067,1748875854305,-1091.3,0.00019566,2]
[363801068,1748875854315,-1175.57,0.00019566,2]
[363801069,1748875854325,-1163.93,0.00019566,2]
[363801070,1748875854336,-500.0,0.00019572,2]
[363801071,1748875854346,-500.0,0.00019572,2]
[363801072,1748875854355,-500.0,0.00019572,2]
[363801073,1748875854365,-539.3844766,0.00019572,2]
[363801074,1748875854375,-599.088,0.0001959,2]
[363801075,1748875854384,-587.0,0.00019759,2]
[363801076,1748875854395,-587.0,0.00019759,2]
[363801077,1748875854410,-1158.30283495,0.00019762,2]
[363801078,1748875854420,-804.94,0.00019837,2]
[363801079,1748875854430,-1248.91,0.00019837,2]
[363801080,1748875854440,-1900.15,0.00019837,2]
[363801081,1748875854450,-2597.69,0.00019837,2]
[363801082,1748875854460,-638.72,0.00019838,2]
[363801083,1748875854470,-2908.69,0.00019838,2]
[363801084,1748875854480,-430.0,0.00019838,2]
[363801085,1748875854494,-430.0,0.00019838,2]
[363801086,1748875854503,-430.0,0.00019838,2]
[363801087,1748875854513,-497.83,0.00019838,2]
[363801088,1748875854523,-1048.09,0.00019838,2]
[363801089,1748875854533,-430.0,0.00019838,2]
[363801090,1748875854543,-673.12,0.00019838,2]
[363801091,1748875854553,-430.0,0.00019838,2]
[363801092,1748875854563,-430.0,0.00019838,2]
[363801093,1748875854573,-430.0,0.00019838,2]
[363801094,1748875854583,-564.67,0.00019838,2]
[363801095,1748875854592,-851.01,0.00019838,2]
[363801096,1748875854602,-430.0,0.00019838,2]
[363801097,1748875854612,-430.0,0.00019839,2]
[363801098,1748875854623,-469.58,0.00019839,2]
[363801099,1748875854633,-458.12,0.00019839,2]
[363801100,1748875854642,-430.0,0.00019839,2]
[363801101,1748875854652,-430.0,0.00019839,2]
[363801102,1748875854661,-878.66,0.00019839,2]
[363801103,1748875854671,-430.0,0.00019839,2]
[363801104,1748875854681,-430.0,0.00019839,2]
[363801105,1748875854691,-430.0,0.00019839,2]
[363801106,1748875854700,-2068.77,0.00019839,2]
[363801107,1748875854710,-873.36,0.00019839,2]
[363801108,1748875854720,-430.0,0.00019839,2]
[363801109,1748875854730,-430.0,0.00019839,2]
[363801110,1748875854740,-476.02,0.00019839,2]
[363801111,1748875854750,-430.0,0.00019839,2]
[363801112,1748875854760,-430.0,0.00019839,2]
[363801113,1748875854770,-430.0,0.00019839,2]
[363801114,1748875854780,-565.92,0.00019839,2]
[363801115,1748875854791,-733.15,0.00019839,2]
[363801116,1748875854801,-430.0,0.00019839,2]
[363801117,1748875854811,-1526.4,0.00019839,2]
[363801118,1748875854821,-430.0,0.00019839,2]
[363801119,1748875854831,-654.67,0.00019839,2]
[363801120,1748875854841,-3041.88,0.00019839,2]
[363801121,1748875854851,-430.0,0.00019839,2]
[363801122,1748875854861,-501.42,0.00019839,2]
[363801123,1748875854871,-430.0,0.0001984,2]
[363801124,1748875854882,-434.65,0.0001984,2]
[363801125,1748875854892,-430.0,0.0001984,2]
[363801126,1748875854902,-430.0,0.0001984,2]
[363801127,1748875854912,-430.0,0.0001984,2]
[363801128,1748875854922,-430.0,0.0001984,2]
[363801129,1748875854932,-1091.3,0.0001984,2]
[363801130,1748875854943,-1175.57,0.0001984,2]
[363801131,1748875854952,-1163.93,0.0001984,2]
[363801132,1748875854962,-500.0,0.00019967,2]
[363801133,1748875854972,-1158.30283495,0.00019969,2]
[363801134,1748875854983,-609.34697371,0.00019973,2]
[363801135,1748875854994,-500.0,0.00019973,2]
[363801136,1748875855004,-500.0,0.00019973,2]
[363801137,1748875855015,-500.0,0.00019973,2]
[363801138,1748875855025,-500.0,0.00019973,2]
[363801139,1748875855034,-500.0,0.00019973,2]
[363801140,1748875855044,-500.0,0.00019973,2]
[363801141,1748875855054,-207.4,0.00019973,2]
[363801142,1748875855064,-750.0,0.00019973,2]
[363801143,1748875855074,-750.0,0.00019973,2]
[363801144,1748875855084,-750.0,0.00019973,2]
[363801145,1748875855093,-750.0,0.00019973,2]
[363801146,1748875855102,-750.0,0.00019973,2]
[363801147,1748875855112,-750.0,0.00019973,2]
[363801148,1748875855121,-750.0,0.00019973,2]
[363801149,1748875855131,-750.0,0.00019973,2]
[363801150,1748875855141,-750.0,0.00019973,2]
[363801151,1748875855150,-5000.0,0.00019973,2]
[363801152,1748875855160,-750.0,0.00019973,2]
[363801153,1748875855169,-750.0,0.00019973,2]
[363801154,1748875855179,-750.0,0.00019973,2]
[363801155,1748875855189,-750.0,0.00019973,2]
[363801156,1748875855199,-750.0,0.00019973,2]
[363801157,1748875855209,-750.0,0.00019973,2]
[363801158,1748875855219,-134245.79905695,0.0002,2]
[363801159,1748875855228,-430.97,0.0002,2]
[363801160,1748875855240,-7191.58078867,0.0002,2]
[363801161,1748875855250,-1010.0,0.0002,2]
[363801162,1748875855260,-4000.0,0.0002,4]
[363801163,1748875855269,-416.68985103,0.00020014,2]
[363801164,1748875855279,-1000.0,0.00020041,2]
[363801165,1748875855289,-1200.0,0.00020041,2]
[363801166,1748875855298,-151.0,0.00020052,2]
[363801167,1748875855308,-500.0,0.00020052,2]
[363801168,1748875855318,-151.0,0.00020052,2]
[363801169,1748875855327,-151.0,0.00020052,2]
[363801170,1748875855337,-198.0,0.00020052,2]
[363801171,1748875855347,-152.63117165,0.00020052,2]
[363801172,1748875855358,-500.0,0.00020052,2]
[363801173,1748875855368,-151.0,0.00020052,2]
[363801174,1748875855378,-500.0,0.00020052,2]
[363801175,1748875855387,-151.0,0.00020052,2]
[363801176,1748875855397,-151.0,0.00020052,2]
[363801177,1748875855408,-151.0,0.00020052,2]
[363801178,1748875855419,-151.0,0.00020052,2]
[363801179,1748875855429,-198.0,0.00020052,2]
[363801180,1748875855439,-151.0,0.00020052,2]
[363801181,1748875855448,-500.0,0.00020079,2]
[363801182,1748875855459,-151.0,0.00020079,2]
[363801183,1748875855468,-500.0,0.00020079,2]
[363801184,1748875855479,-229.96569639,0.00020079,2]
[363801185,1748875855490,-500.0,0.00020079,2]
[363801186,1748875855503,-205.80618261,0.00020079,2]
[363801187,1748875855513,-151.0,0.00020079,2]
[363801188,1748875855523,-500.0,0.00020107,2]
[363801189,1748875855532,-151.0,0.00020107,2]
[363801190,1748875855542,-500.0,0.00020107,2]
[363801191,1748875855552,-500.0,0.00020107,2]
[363801192,1748875855561,-151.0,0.00020107,2]
[363801193,1748875855571,-804.94,0.00020111,2]
[363801194,1748875855581,-1248.91,0.00020111,2]
[363801195,1748875855591,-1900.15,0.00020111,2]
[363801196,1748875855601,-2597.69,0.00020111,2]
[363801197,1748875855610,-638.72,0.00020112,2]
[363801198,1748875855620,-2908.69,0.00020112,2]
[363801199,1748875855629,-430.0,0.00020112,2]
[363801200,1748875855639,-430.0,0.00020112,2]
[363801201,1748875855650,-430.0,0.00020112,2]
[363801202,1748875855659,-497.83,0.00020112,2]
[363801203,1748875855669,-1048.09,0.00020112,2]
[363801204,1748875855679,-430.0,0.00020112,2]
[363801205,1748875855688,-673.12,0.00020112,2]
[363801206,1748875855698,-430.0,0.00020112,2]
[363801207,1748875855707,-430.0,0.00020112,2]
[363801208,1748875855717,-430.0,0.00020112,2]
[363801209,1748875855727,-564.67,0.00020112,2]
[363801210,1748875855737,-851.01,0.00020112,2]
[363801211,1748875855747,-430.0,0.00020112,2]
[363801212,1748875855756,-469.58,0.00020113,2]
[363801213,1748875855765,-458.12,0.00020113,2]
[363801214,1748875855775,-372.62763877,0.00020113,2]
[363801215,1748875855785,-430.0,0.00020113,2]
[363801216,1748875855794,-878.66,0.00020113,2]
[363801217,1748875855804,-430.0,0.00020113,2]
[363801218,1748875855814,-430.0,0.00020113,2]
[363801219,1748875855824,-430.0,0.00020113,2]
[363801220,1748875855834,-2068.77,0.00020113,2]
[363801221,1748875855844,-873.36,0.00020113,2]
[363801222,1748875855854,-430.0,0.00020113,2]
[363801223,1748875855864,-430.0,0.00020113,2]
[363801224,1748875855873,-476.02,0.00020113,2]
[363801225,1748875855883,-430.0,0.00020113,2]
[363801226,1748875855893,-430.0,0.00020113,2]
[363801227,1748875855902,-430.0,0.00020113,2]
[363801228,1748875855912,-565.92,0.00020113,2]
[363801229,1748875855922,-733.15,0.00020113,2]
[363801230,1748875855931,-430.0,0.00020113,2]
[363801231,1748875855941,-1526.4,0.00020113,2]
[363801232,1748875855951,-430.0,0.00020113,2]
[363801233,1748875855963,-654.67,0.00020113,2]
[363801234,1748875855973,-3041.88,0.00020113,2]
[363801235,1748875855983,-311.29,0.00020113,2]
[363801236,1748875855995,-501.42,0.00020113,2]
[363801237,1748875856004,-430.0,0.00020114,2]
[363801238,1748875856014,-434.65,0.00020114,2]
[363801239,1748875856024,-430.0,0.00020114,2]
[363801240,1748875856034,-430.0,0.00020114,2]
[363801241,1748875856044,-430.0,0.00020114,2]
[363801242,1748875856053,-430.0,0.00020114,2]
[363801243,1748875856063,-1091.3,0.00020114,2]
[363801244,1748875856073,-1175.57,0.00020114,2]
[363801245,1748875856083,-1163.93,0.00020114,2]
[363801246,1748875856093,-1000.0,0.0002012,2]
[363801247,1748875856104,-1000.0,0.0002012,2]
[363801248,1748875856113,-1000.0,0.0002012,2]
[363801249,1748875856123,-1000.0,0.00020129,2]
[363801250,1748875856133,-252.45466841,0.00020134,2]
[363801251,1748875856142,-151.0,0.00020134,2]
[363801252,1748875856153,-500.0,0.00020134,2]
[363801253,1748875856162,-500.0,0.00020134,2]
[363801254,1748875856172,-162.0,0.00020134,2]
[363801255,1748875856182,-204.59836485,0.00020162,2]
[363801256,1748875856193,-500.0,0.00020162,2]
[363801257,1748875856203,-500.0,0.00020162,2]
[363801258,1748875856213,-1158.30283495,0.00020176,2]
[363801259,1748875856223,-339.83274,0.00020187,2]
[363801260,1748875856234,-500.0,0.00020189,2]
[363801261,1748875856246,-500.0,0.00020189,2]
[363801262,1748875856257,-500.0,0.00020216,2]
[363801263,1748875856266,-500.0,0.00020216,2]
[363801264,1748875856276,-500.0,0.00020244,2]
[363801265,1748875856286,-500.0,0.00020244,2]
[363801266,1748875856296,-500.0,0.00020271,2]
[363801267,1748875856305,-500.0,0.00020271,2]
[363801268,1748875856316,-500.0,0.00020299,2]
[363801269,1748875856325,-500.0,0.00020299,2]
[363801270,1748875856336,-500.0,0.00020326,2]
[363801271,1748875856345,-500.0,0.00020326,2]
[363801272,1748875856354,-500.0,0.00020353,2]
[363801273,1748875856364,-190.05123427,0.00020353,2]
[363801274,1748875856373,-531.27793115,0.00020381,2]
[363801275,1748875856382,-1158.30283495,0.00020383,3]
[363801276,1748875856392,-804.94,0.00020385,2]
[363801277,1748875856404,-1248.91,0.00020385,2]
[363801278,1748875856416,-1900.15,0.00020385,2]
[363801279,1748875856426,-2597.69,0.00020385,2]
[363801280,1748875856436,-2908.69,0.00020386,2]
[363801281,1748875856446,-430.0,0.00020386,2]
[363801282,1748875856456,-430.0,0.00020386,2]
[363801283,1748875856466,-430.0,0.00020386,2]
[363801284,1748875856477,-497.83,0.00020386,2]
[363801285,1748875856486,-1048.09,0.00020386,2]
[363801286,1748875856498,-430.0,0.00020386,2]
[363801287,1748875856508,-673.12,0.00020386,2]
[363801288,1748875856518,-430.0,0.00020386,2]
[363801289,1748875856528,-430.0,0.00020386,2]
[363801290,1748875856538,-564.67,0.00020386,2]
[363801291,1748875856549,-851.01,0.00020386,2]
[363801292,1748875856559,-430.0,0.00020386,2]
[363801293,1748875856568,-469.58,0.00020387,2]
[363801294,1748875856578,-458.12,0.00020387,2]
[363801295,1748875856587,-319.05546027,0.00020387,2]
[363801296,1748875856597,-878.66,0.00020387,2]
[363801297,1748875856606,-430.0,0.00020387,2]
[363801298,1748875856616,-430.0,0.00020387,2]
[363801299,1748875856749,-430.0,0.00020387,2]
[363801300,1748875856759,-2068.77,0.00020387,2]
[363801301,1748875856771,-873.36,0.00020387,2]
[363801302,1748875856781,-430.0,0.00020387,2]
[363801303,1748875856792,-430.0,0.00020387,2]
[363801304,1748875856802,-476.02,0.00020387,2]
[363801305,1748875856812,-430.0,0.00020387,2]
[363801306,1748875856822,-430.0,0.00020387,2]
[363801307,1748875856832,-430.0,0.00020387,2]
[363801308,1748875856842,-565.92,0.00020387,2]
[363801309,1748875856852,-733.15,0.00020387,2]
[363801310,1748875856863,-430.0,0.00020387,2]